bitfinex-derivatives/quotes_SOLF0:USTF0_20250803
["timestamp","ask_amount","ask_price","bid_price","bid_amount"]
[1754226570140,3.35,161.96,161.94,6.1749]
[1754226570445,6.1739,161.98,161.94,6.1749]
[1754226570446,3.35,161.98,161.95,3.17]
[1754226570641,3.35,161.98,161.95,9.3446]
[1754226570845,238.36364572,162.02,161.96,3.17]
[1754226570846,9.523,162.0,161.96,3.17]
[1754226571146,3.35,161.99,161.96,3.17]
[1754226571743,3.35,161.98,161.97,3.17]
[1754226572532,238.36364572,162.02,161.93,6.1753]
[1754226572745,3.35,162.01,161.94,3.17]
[1754226573145,6.1744,161.97,161.94,3.17]
[1754226573351,6.1744,161.97,161.92,6.1757]
[1754226573650,3.35,161.95,161.93,3.17]
[1754226573950,3.35,161.95,161.94,3.17]
[1754226575848,3.35,161.95,161.91,5.10201896]
[1754226575849,6.1744,161.97,161.92,6.1758]
[1754226576047,3.35,161.95,161.92,6.1758]
[1754226576248,3.35,161.95,161.94,3.17]
[1754226576647,6.1744,161.97,161.93,6.1755]
[1754226576850,3.35,161.96,161.93,6.1755]
[1754226577149,3.35,161.96,161.94,3.17]
[1754226577643,3.35,161.95,161.94,3.17]
[1754226579351,3.35,162.01,161.94,3.17]
[1754226579945,238.36364572,162.02,161.94,5.10201896]
[1754226580248,241.71364572,162.02,162.0,3.17]
[1754226581240,238.36364572,162.02,162.0,6.1727]
[1754226581442,238.36364572,162.02,162.01,3.17]
[1754226581749,241.71364572,162.02,162.01,3.17]
[1754226584345,241.71364572,162.02,161.96,5.10201896]
[1754226584542,3.31,162.01,161.98,3.29]
[1754226584942,3.31,162.01,161.99,3.29]
[1754226585348,3.31,162.0,161.99,3.29]
[1754226587556,244.53584572,162.02,161.95,5.10201896]
[1754226587557,3.31,161.99,161.95,3.29]
[1754226588251,238.36364572,162.02,161.95,3.29]
[1754226588448,3.31,162.01,161.95,3.29]
[1754226588646,9.4826,162.01,161.96,6.1741]
[1754226588852,3.31,162.0,161.97,3.29]
[1754226589154,3.31,161.99,161.98,3.29]
[1754226589454,3.31,161.99,161.95,6.1747]
[1754226589665,3.31,161.99,161.97,3.29]
[1754226590159,6.1729,162.0,161.95,6.1747]
[1754226590350,3.31,162.01,161.95,3.29]
[1754226591062,6.1736,161.99,161.95,3.29]
[1754226591257,6.1736,161.99,161.94,6.1751]
[1754226591455,3.31,161.97,161.96,3.29]
[1754226594669,3.31,161.99,161.96,9.4644]
[1754226594869,3.31,161.99,161.97,3.29]
[1754226595165,6.173,162.0,161.96,6.1744]
[1754226595469,3.31,161.98,161.95,3.29]
[1754226595662,3.31,161.98,161.94,3.29]
[1754226595866,113.18,161.99,161.94,3.29]
[1754226596066,3.31,161.97,161.94,3.29]
[1754226596764,6.1741,161.97,161.95,3.29]
[1754226596963,3.31,161.96,161.95,3.29]
[1754226597972,3.31,161.96,161.94,3.29]
[1754226598564,3.31,161.95,161.94,3.29]
[1754226598862,3.31,161.95,161.91,11.27801896]
[1754226599061,3.31,161.94,161.92,3.29]
[1754226599571,3.31,161.98,161.91,3.29]
[1754226600273,3.31,161.95,161.92,3.29]
[1754226600467,3.31,161.95,161.93,3.29]
[1754226600967,3.31,161.94,161.89,5.10201896]
[1754226601273,3.31,161.94,161.91,6.1761]
[1754226601471,3.31,161.94,161.93,3.29]
[1754226602569,3.31,161.94,161.91,6.1761]
[1754226602774,3.31,161.94,161.9,6.1766]
[1754226602969,3.31,161.94,161.92,3.29]
[1754226603272,6.175,161.95,161.92,3.29]
[1754226603273,3.31,161.93,161.92,3.29]
[1754226604282,3.31,161.95,161.9,3.29]
[1754226604977,9.4851,161.95,161.9,9.4667]
[1754226605173,3.31,161.94,161.89,5.10201896]
[1754226605380,3.31,161.94,161.9,3.29]
[1754226605669,6.176,161.92,161.9,3.29]
[1754226605875,3.31,161.91,161.9,3.29]
[1754226606078,6.1767,161.9,161.88,3.29]
[1754226606268,3.31,161.89,161.88,3.29]
[1754226611880,9.4871,161.89,161.88,3.29]
[1754226612275,3.31,161.89,161.88,3.29]
[1754226612674,3.31,161.89,161.85,6.1786]
[1754226612876,3.31,161.89,161.86,3.29]
[1754226613072,3.31,161.89,161.8,5.10201896]
[1754226613283,3.31,161.89,161.81,3.29]
[1754226613582,6.1777,161.88,161.83,6.1792]
[1754226613779,3.39,161.87,161.84,3.29]
[1754226613978,3.39,161.93,161.84,3.29]
[1754226614174,4.52949923,161.92,161.84,3.29]
[1754226614485,3.39,161.9,161.84,3.29]
[1754226614779,3.39,161.88,161.84,3.29]
[1754226615284,3.39,161.88,161.84,6.1789]
[1754226615577,113.2,161.94,161.8,5.10201896]
[1754226615885,3.39,161.92,161.87,3.29]
[1754226616183,3.39,161.91,161.87,3.29]
[1754226616573,113.2,161.94,161.87,3.29]
[1754226616778,3.39,161.9,161.87,3.29]
[1754226617183,3.39,161.93,161.86,3.29]
[1754226617373,3.39,161.91,161.86,3.29]
[1754226617887,9.5675,161.88,161.83,6.1793]
[1754226618081,3.39,161.88,161.82,3.29]
[1754226618386,113.2,161.94,161.84,6.1789]
[1754226618387,6.1771,161.89,161.84,6.1789]
[1754226618579,9.5671,161.89,161.85,3.29]
[1754226618781,3.39,161.88,161.85,3.29]
[1754226619381,9.5676,161.88,161.85,3.29]
[1754226619588,3.39,161.87,161.79,5.10201896]
[1754226619783,18.51,161.98,161.85,3.29]
[1754226619988,3.39,161.86,161.85,3.29]
[1754226621893,9.5682,161.86,161.85,3.29]
[1754226622084,9.5682,161.86,161.83,3.29]
[1754226622085,3.39,161.86,161.83,3.29]
[1754226622286,3.39,161.95,161.8,6.1804]
[1754226622486,3.39,161.83,161.81,3.29]
[1754226623181,3.39,161.82,161.81,3.29]
[1754226623381,440.46806897,161.96,161.81,3.29]
[1754226623686,3.39,161.83,161.82,3.29]
[1754226624189,6.179,161.85,161.82,3.29]
[1754226624389,3.39,161.84,161.8,6.1803]
[1754226624591,3.39,161.84,161.81,3.29]
[1754226626191,3.39,161.92,161.82,3.29]
[1754226626394,3.39,161.9,161.82,3.29]
[1754226627493,3.39,161.9,161.79,3.29]
[1754226627992,6.1801,161.82,161.74,420.04201896]
[1754226628186,3.39,161.81,161.8,3.29]
[1754226628386,6.1801,161.82,161.74,420.04201896]
[1754226628577,18.51,161.95,161.75,3.29]
[1754226628783,3.39,161.93,161.75,3.29]
[1754226628994,6.1804,161.81,161.76,6.182]
[1754226629191,9.5704,161.81,161.77,3.29]
[1754226629488,3.39,161.86,161.77,3.29]
[1754226629693,6.181,161.79,161.77,3.29]
[1754226629897,9.571,161.79,161.77,3.29]
[1754226630185,3.39,161.78,161.77,3.29]
[1754226631192,9.5713,161.78,161.77,3.29]
[1754226632894,3.39,161.79,161.74,3.29]
[1754226633192,3.39,161.78,161.74,3.29]
[1754226633997,3.39,161.77,161.75,3.29]
[1754226634191,3.39,161.77,161.76,3.29]
[1754226634492,3.39,161.77,161.69,5.10201896]
[1754226634691,3.39,161.86,161.69,3.29]
[1754226634995,3.39,161.84,161.69,3.29]
[1754226635292,3.39,161.81,161.72,3.29]
[1754226636196,3.39,161.81,161.74,3.29]
[1754226637488,237.84398115,161.82,161.75,3.29]
[1754226637695,7.89817801,161.81,161.75,3.29]
[1754226637995,3.39,161.81,161.75,3.29]
[1754226639193,6.1809,161.79,161.75,9.4723]
[1754226639392,6.1809,161.79,161.75,6.1823]
[1754226639593,9.5709,161.79,161.76,3.29]
[1754226639794,6.1806,161.8,161.76,9.472]
[1754226639993,6.1806,161.8,161.77,3.29]
[1754226640194,241.23398115,161.82,161.77,3.29]
[1754226640698,237.84398115,161.82,161.77,3.29]
[1754226641595,241.23398115,161.82,161.77,6.1816]
[1754226641791,3.39,161.81,161.78,3.29]
[1754226641990,244.02388115,161.82,161.78,3.29]
[1754226642295,247.41388115,161.82,161.78,3.29]
[1754226642797,247.41388115,161.82,161.78,6.1812]
[1754226642998,247.41388115,161.82,161.79,3.29]
[1754226643197,237.84398115,161.82,161.79,3.29]
[1754226643398,3.39,161.81,161.78,3.29]
[1754226643698,3.3,161.81,161.78,3.24]
[1754226643900,3.3,161.81,161.79,3.24]
[1754226644398,3.3,161.81,161.73,5.12304996]
[1754226644598,3.3,161.81,161.8,3.24]
[1754226645195,9.4802,161.81,161.8,3.24]
[1754226645889,244.02388115,161.82,161.8,3.24]
[1754226647100,247.32388115,161.82,161.81,3.24]
[1754226649001,237.84398115,161.82,161.81,3.24]
[1754226649211,237.84398115,161.82,161.74,3.24]
[1754226649407,237.84398115,161.82,161.77,6.1813]
[1754226649607,237.84398115,161.82,161.78,3.24]
[1754226649803,241.14398115,161.82,161.78,3.24]
[1754226650104,3.3,161.81,161.78,3.24]
[1754226652004,244.02378115,161.82,161.78,3.24]
[1754226652005,3.3,161.8,161.78,3.24]
[1754226652699,3.3,161.81,161.77,6.1813]
[1754226653000,3.3,161.8,161.79,3.24]
[1754226654106,6.1802,161.81,161.78,3.24]
[1754226654306,3.3,161.79,161.78,3.24]
[1754226655004,3.3,161.81,161.79,3.24]
[1754226655208,3.3,161.81,161.8,3.24]
[1754226655507,3.3,161.81,161.75,3.24]
[1754226655703,6.181,161.79,161.75,3.24]
[1754226655902,3.3,161.81,161.75,3.24]
[1754226656402,3.3,161.79,161.76,3.24]
[1754226657904,6.1807,161.8,161.76,3.24]
[1754226658208,3.3,161.78,161.76,3.24]
[1754226659013,3.3,161.77,161.76,3.24]
[1754226659310,237.84398115,161.82,161.76,3.24]
[1754226659608,3.3,161.78,161.77,3.24]
[1754226660305,237.84398115,161.82,161.75,6.1824]
[1754226660306,3.3,161.79,161.75,6.1824]
[1754226660502,3.3,161.79,161.76,3.24]
[1754226660904,3.3,161.79,161.72,5.14231216]
[1754226660905,4.53020794,161.78,161.72,3.24]
[1754226661109,3.3,161.76,161.73,3.24]
[1754226661308,6.1826,161.75,161.73,3.24]
[1754226661509,3.3,161.74,161.73,3.24]
[1754226662904,9.4828,161.74,161.73,3.24]
[1754226663812,9.4833,161.73,161.72,3.24]
[1754226664001,3.3,161.73,161.71,165.67659914]
[1754226664310,9.4831,161.74,161.73,3.24]
[1754226665006,6.1835,161.73,161.71,165.67659914]
[1754226665212,3.3,161.74,161.72,3.24]
[1754226665504,3.3,161.73,161.72,3.24]
[1754226665707,3.3,161.79,161.69,3.24]
[1754226666006,3.3,161.77,161.65,415.16]
[1754226666208,3.3,161.75,161.65,3.24]
[1754226666409,3.3,161.73,161.65,3.24]
[1754226666614,3.3,161.71,161.65,3.24]
[1754226666814,3.3,161.68,161.66,3.24]
[1754226667108,113.62,161.72,161.66,3.24]
[1754226667315,4.53019995,161.71,161.66,3.24]
[1754226667509,4.53019995,161.7,161.67,3.24]
[1754226667715,3.3,161.68,161.67,3.24]
[1754226668113,3.3,161.71,161.68,3.24]
[1754226668916,6.184,161.71,161.68,3.24]
[1754226670114,3.3,161.73,161.68,3.24]
[1754226670115,6.1837,161.72,161.68,3.24]
[1754226670815,3.3,161.73,161.68,3.24]
[1754226671009,237.84398115,161.82,161.68,3.24]
[1754226671010,3.3,161.75,161.68,3.24]
[1754226671519,6.1831,161.74,161.69,6.1847]
[1754226671716,6.1831,161.74,161.7,3.24]
[1754226672016,3.3,161.74,161.7,3.24]
[1754226672713,3.3,161.73,161.7,3.24]
[1754226673111,3.3,161.74,161.7,3.24]
[1754226674013,9.4831,161.74,161.7,3.24]
[1754226674403,3.3,161.74,161.7,3.24]
[1754226675207,9.5935,161.73,161.7,3.24]
[1754226675803,6.1837,161.72,161.67,6.1854]
[1754226676005,3.41,161.71,161.68,3.44]
[1754226676406,6.1837,161.72,161.67,6.1854]
[1754226676616,3.41,161.72,161.65,3.44]
[1754226677312,3.41,161.69,161.65,3.44]
[1754226677508,3.41,161.7,161.65,3.44]
[1754226677710,3.41,161.72,161.65,3.44]
[1754226677914,3.41,161.74,161.64,3.44]
[1754226678315,6.1837,161.72,161.67,6.1855]
[1754226678514,9.5937,161.72,161.68,3.44]
[1754226679322,9.594,161.71,161.68,3.44]
[1754226679917,6.184,161.71,161.68,3.44]
[1754226680219,3.41,161.7,161.66,3.44]
[1754226680715,3.41,161.7,161.66,9.6258]
[1754226680919,3.41,161.7,161.67,3.44]
[1754226682912,9.5937,161.72,161.68,3.44]
[1754226683210,3.41,161.71,161.68,3.44]
[1754226684521,3.41,161.7,161.68,3.44]
[1754226686117,3.41,161.7,161.67,6.1855]
[1754226686118,3.41,161.7,161.69,3.44]
[1754226686322,3.41,161.72,161.69,3.44]
[1754226686716,6.1833,161.73,161.69,3.44]
[1754226686916,3.41,161.71,161.69,3.44]
[1754226688824,3.41,161.78,161.69,6.1844]
[1754226689221,3.41,161.78,161.65,3.44]
[1754226690221,3.41,161.78,161.6,3.44]
[1754226690422,3.41,161.67,161.6,3.44]
[1754226690819,6.85806897,161.79,161.6,3.44]
[1754226691021,117.25,161.78,161.61,5.15269867]
[1754226691228,3.41,161.77,161.63,3.44]
[1754226691526,113.84,161.78,161.7,3.44]
[1754226691728,3.41,161.77,161.63,3.44]
[1754226692430,3.41,161.76,161.67,3.44]
[1754226692829,3.41,161.7,161.68,3.44]
[1754226693029,3.41,161.77,161.66,3.44]
[1754226693423,6.1847,161.7,161.65,6.186]
[1754226693730,113.84,161.78,161.6,5.15269867]
[1754226693924,3.41,161.67,161.66,3.44]
[1754226694231,3.41,161.68,161.61,3.44]
[1754226694433,6.1864,161.65,161.61,9.6277]
[1754226694631,3.41,161.65,161.62,3.44]
[1754226695323,3.41,161.76,161.63,3.44]
[1754226695628,3.41,161.65,161.63,3.44]
[1754226696222,3.41,161.65,161.64,3.44]
[1754226696633,3.41,161.76,161.64,3.44]
[1754226696933,3.41,161.75,161.64,3.44]
[1754226697621,113.98,161.76,161.6,5.15269867]
[1754226697828,3.41,161.75,161.65,3.44]
[1754226698133,113.98,161.78,161.63,5.15269867]
[1754226698322,113.98,161.78,161.64,3.44]
[1754226698323,3.41,161.77,161.64,3.44]
[1754226698733,9.5955,161.67,161.64,3.44]
[1754226699231,3.41,161.66,161.65,3.44]
[1754226699431,9.5959,161.66,161.6,3.44]
[1754226699634,3.41,161.66,161.6,3.44]
[1754226700225,3.41,161.66,161.63,3.44]
[1754226700435,6.85806897,161.77,161.63,3.44]
[1754226700625,3.41,161.76,161.63,3.44]
[1754226701233,3.41,161.76,161.66,3.44]
[1754226702940,6.1852,161.68,161.65,3.44]
[1754226703237,3.41,161.76,161.62,3.44]
[1754226703439,3.41,161.75,161.62,3.44]
[1754226703638,3.29,161.66,161.64,3.29]
[1754226704534,3.29,161.66,161.65,3.29]
[1754226705239,9.4759,161.66,161.65,3.29]
[1754226705531,6.85806897,161.75,161.65,3.29]
[1754226705737,3.29,161.67,161.66,3.29]
[1754226706629,9.4756,161.67,161.66,3.29]
[1754226707337,3.29,161.73,161.61,3.29]
[1754226707541,3.29,161.72,161.61,3.29]
[1754226707742,6.187,161.64,161.61,3.29]
[1754226708042,9.477,161.64,161.61,3.29]
[1754226709744,6.187,161.63,161.61,3.29]
[1754226709945,3.29,161.64,161.61,3.29]
[1754226711252,9.4769,161.64,161.61,3.29]
[1754226714349,3.29,161.63,161.61,3.29]
[1754226715452,3.29,161.68,161.61,3.29]
[1754226715851,3.29,161.68,161.63,6.187]
[1754226716054,3.29,161.73,161.64,3.29]
[1754226716552,3.29,161.68,161.65,3.29]
[1754226717552,3.29,161.68,161.66,3.29]
[1754226720649,6.1846,161.7,161.66,3.29]
[1754226720853,3.29,161.69,161.66,3.29]
[1754226721051,9.4748,161.69,161.66,3.29]
[1754226721249,6.1848,161.69,161.66,3.29]
[1754226721450,3.29,161.68,161.66,3.29]
[1754226722846,3.29,161.75,161.66,3.29]
[1754226723355,9.4742,161.71,161.66,3.29]
[1754226723556,3.29,161.7,161.66,3.29]
[1754226723951,3.29,161.77,161.66,3.29]
[1754226724454,415.66,161.78,161.67,3.29]
[1754226724455,9.4731,161.74,161.67,3.29]
[1754226725062,3.29,161.73,161.69,3.29]
[1754226725354,415.66,161.78,161.71,6.1836]
[1754226725560,120.87806897,161.83,161.68,5.15269867]
[1754226725561,3.29,161.77,161.72,3.29]
[1754226726055,3.29,161.76,161.72,3.29]
[1754226727458,3.29,161.76,161.73,3.29]
[1754226727952,114.02,161.83,161.69,3.29]
[1754226727953,3.29,161.81,161.69,3.29]
[1754226728159,3.29,161.81,161.71,3.29]
[1754226728658,9.4709,161.79,161.75,3.29]
[1754226729051,3.29,161.79,161.76,3.29]
[1754226729559,3.29,161.79,161.77,3.29]
[1754226729953,3.29,161.81,161.77,3.29]
[1754226730153,3.29,161.8,161.77,6.1817]
[1754226730455,3.29,161.8,161.79,3.29]
[1754226730653,3.29,161.8,161.71,3.29]
[1754226732252,6.1808,161.8,161.71,3.29]
[1754226732452,3.29,161.79,161.71,3.29]
[1754226734360,3.29,161.79,161.75,6.1822]
[1754226734553,3.29,161.79,161.71,3.29]
[1754226735459,3.29,161.79,161.76,6.182]
[1754226735661,3.29,161.79,161.78,3.45]
[1754226736962,9.4709,161.79,161.78,3.45]
[1754226737164,3.45,161.78,161.76,3.45]
[1754226742266,3.45,161.78,161.76,6.182]
[1754226742466,3.45,161.78,161.77,3.45]
[1754226742869,3.45,161.81,161.78,3.45]
[1754226743163,6.85806897,161.92,161.78,3.45]
[1754226743361,3.45,161.85,161.73,5.15269867]
[1754226743572,3.45,161.85,161.81,3.45]
[1754226744474,6.179,161.84,161.81,3.45]
[1754226744670,3.45,161.82,161.81,3.45]
[1754226746173,114.81545158,161.92,161.81,3.45]
[1754226746370,3.45,161.91,161.81,3.45]
[1754226746569,6.1779,161.87,161.81,3.45]
[1754226746776,3.45,161.85,161.81,3.45]
[1754226747278,114.81545158,161.92,161.81,3.45]
[1754226747279,3.45,161.91,161.81,3.45]
[1754226747577,6.1773,161.89,161.84,6.1788]
[1754226747770,3.45,161.88,161.85,3.45]
[1754226748075,3.45,161.87,161.85,3.45]
[1754226748276,3.45,161.88,161.76,3.45]
[1754226748876,3.45,161.89,161.86,3.45]
[1754226749373,117.19,161.92,161.87,6.1778]
[1754226749675,117.19,161.92,161.88,3.45]
[1754226749676,3.45,161.91,161.88,3.45]
[1754226750269,3.45,161.9,161.88,3.45]
[1754226750476,3.45,161.91,161.89,3.45]
[1754226750677,3.45,161.91,161.77,118.85269867]
[1754226750877,6.1763,161.91,161.88,3.45]
[1754226751073,3.45,161.9,161.88,3.45]
[1754226751381,3.45,161.89,161.88,3.45]
[1754226752574,3.45,161.89,161.78,3.45]
[1754226752776,6.1782,161.86,161.82,6.1797]
[1754226753078,113.74,161.92,161.83,3.45]
[1754226753281,3.45,161.84,161.83,3.45]
[1754226758683,6.178,161.87,161.82,6.1796]
[1754226758984,3.45,161.86,161.83,3.45]
[1754226759383,3.45,161.86,161.84,3.45]
[1754226762082,113.74,161.92,161.77,113.7]
[1754226762281,3.45,161.91,161.78,3.45]
[1754226763282,6.1768,161.9,161.85,6.1783]
[1754226763481,3.45,161.89,161.85,6.1783]
[1754226763680,3.45,161.89,161.87,3.47]
[1754226764885,1.07533527,161.96,161.87,3.47]
[1754226765087,3.21,161.95,161.87,3.47]
[1754226765387,3.21,161.9,161.88,3.47]
[1754226768582,3.21,161.89,161.88,3.47]
[1754226771390,3.21,161.89,161.81,5.15269867]
[1754226771585,3.21,161.89,161.86,3.47]
[1754226771990,3.21,161.88,161.86,3.47]
[1754226774393,3.21,161.88,161.86,6.1782]
[1754226774695,3.21,161.89,161.87,3.47]
[1754226775196,1.07533527,161.96,161.81,5.15269867]
[1754226775393,3.21,161.88,161.81,5.15269867]
[1754226775896,3.21,161.88,161.82,3.47]
[1754226776193,3.21,161.88,161.84,6.1788]
[1754226776394,3.21,161.88,161.85,3.47]
[1754226776695,9.3875,161.88,161.85,3.47]
[1754226777289,6.1775,161.88,161.85,3.47]
[1754226777792,3.21,161.87,161.85,3.47]
[1754226778997,3.21,161.88,161.86,3.47]
[1754226780493,3.21,161.87,161.86,3.47]
[1754226780699,3.21,161.87,161.8,5.15269867]
[1754226780909,3.21,161.87,161.81,3.47]
[1754226781096,3.21,161.87,161.81,8.62269867]
[1754226781293,3.21,161.87,161.82,3.47]
[1754226781999,3.21,161.87,161.85,3.47]
[1754226782196,1.07533527,161.96,161.85,3.47]
[1754226782395,6.1766,161.91,161.86,6.1782]
[1754226782597,3.21,161.95,161.85,3.47]
[1754226783397,3.21,161.89,161.86,3.47]
[1754226784199,3.21,161.88,161.83,3.47]
[1754226784499,3.21,161.88,161.8,5.13664659]
[1754226784500,6.1775,161.88,161.81,3.47]
[1754226784700,3.21,161.87,161.83,6.1791]
[1754226784898,3.21,161.87,161.84,3.47]
[1754226785097,3.21,161.87,161.85,3.47]
[1754226786503,3.21,161.86,161.85,3.47]
[1754226786803,3.21,161.86,161.84,3.47]
[1754226787001,3.21,161.93,161.81,3.47]
[1754226787204,3.21,161.92,161.81,3.47]
[1754226787404,3.21,161.91,161.81,3.47]
[1754226787706,3.21,161.84,161.81,3.47]
[1754226787895,6.85806897,161.92,161.79,5.13664659]
[1754226788099,3.21,161.87,161.75,5.13664659]
[1754226788300,6.85806897,161.86,161.74,3.47]
[1754226788603,3.21,161.85,161.76,3.47]
[1754226789406,3.21,161.78,161.76,3.47]
[1754226789612,4.49702702,161.77,161.76,3.47]
[1754226789818,3.21,161.76,161.74,3.47]
[1754226790111,3.21,161.75,161.74,3.47]
[1754226791013,3.21,161.84,161.74,3.47]
[1754226791214,3.21,161.82,161.74,3.47]
[1754226791509,7.69967716,161.81,161.74,3.47]
[1754226791704,4.48967716,161.8,161.74,3.47]
[1754226791908,3.21,161.81,161.74,3.47]
[1754226792107,3.21,161.8,161.75,3.47]
[1754226793110,6.1797,161.83,161.75,3.47]
[1754226793315,3.21,161.83,161.75,3.47]
[1754226793916,3.21,161.83,161.76,6.1817]
[1754226794118,3.21,161.83,161.77,3.44]
[1754226795916,9.3894,161.83,161.77,3.44]
[1754226796116,3.36,161.82,161.77,3.44]
[1754226796310,3.36,161.82,161.77,9.6217]
[1754226796513,3.36,161.82,161.78,3.44]
[1754226797608,3.36,161.84,161.79,3.44]
[1754226797907,6.85806897,161.93,161.79,3.44]
[1754226797908,3.36,161.87,161.79,3.44]
[1754226798511,6.1779,161.87,161.81,6.18]
[1754226798715,3.36,161.92,161.78,3.44]
[1754226798919,3.36,161.91,161.78,3.44]
[1754226799106,3.36,161.81,161.79,3.44]
[1754226799708,3.36,161.8,161.79,3.44]
[1754226800915,3.36,161.81,161.79,3.44]
[1754226801111,113.86,161.91,161.79,3.44]
[1754226801312,3.36,161.9,161.79,3.44]
[1754226801613,3.36,161.84,161.8,3.44]
[1754226801807,3.36,161.93,161.8,3.44]
[1754226802011,3.36,161.92,161.8,3.44]
[1754226804418,6.1774,161.89,161.8,3.44]
[1754226804615,3.36,161.88,161.8,3.44]
[1754226805717,3.36,161.88,161.83,6.1792]
[1754226805915,3.36,161.91,161.84,3.44]
[1754226806724,6.177,161.9,161.85,6.1785]
[1754226807017,3.36,161.89,161.86,3.44]
[1754226807416,3.36,161.88,161.86,3.44]
[1754226809224,3.36,161.88,161.87,3.44]
[1754226810122,530.15521898,161.97,161.81,3.44]
[1754226810123,3.36,161.96,161.81,3.44]
[1754226811228,6.1771,161.89,161.81,3.44]
[1754226811521,9.5371,161.89,161.81,3.44]
[1754226812119,9.5371,161.89,161.84,6.1787]
[1754226812320,3.36,161.88,161.85,3.44]
[1754226816321,3.36,161.87,161.85,3.44]
[1754226816722,6.1775,161.88,161.83,6.1793]
[1754226816925,3.36,161.86,161.83,6.1793]
[1754226817118,6.1775,161.88,161.83,6.1793]
[1754226817313,3.36,161.87,161.84,3.44]
[1754226819122,3.36,161.87,161.84,9.619]
[1754226819322,3.36,161.87,161.85,3.44]
[1754226819622,9.5372,161.89,161.85,3.44]
[1754226819818,3.36,161.88,161.85,3.44]
[1754226820521,6.1772,161.89,161.85,3.44]
[1754226820721,3.36,161.88,161.85,3.44]
[1754226821025,3.36,161.87,161.85,3.44]
[1754226822519,6.1772,161.89,161.85,3.44]
[1754226822724,3.36,161.87,161.84,6.179]
[1754226822929,3.36,161.88,161.84,6.179]
[1754226823319,3.36,161.88,161.85,3.44]
[1754226828126,3.36,161.88,161.85,9.6185]
[1754226828326,3.4,161.87,161.86,3.45]
[1754226829128,3.4,161.89,161.87,3.45]
[1754226829429,3.4,161.88,161.87,3.45]
[1754226834328,3.4,161.96,161.87,3.45]
[1754226834524,3.4,161.96,161.89,6.177]
[1754226834829,6.1754,161.94,161.9,3.45]